[Event "Titled Tuesday Blitz June 13 Late 2023"]
[White "Zavgorodniy, Sergiy"]
[Black "campochess"]
[WhiteFideId "14110148"]
[WhiteElo "2402"]
[BlackElo "2218"]
[Result "1-0"]
[Round "3"]
[TimeControl "180+2"]
[Date "2023.06.13"]
[WhiteClock "0:01:17"]
[BlackClock "0:01:32"]
[Board "132"]

1. d4 {[%clk 0:02:49]}  Nf6 {[%clk 0:02:57]} 2. c4 {[%clk 0:02:41]}  e6 {[%clk 0:02:56]} 3. Nf3 {[%clk 0:02:41]}  b6 {[%clk 0:02:55]} 4. g3 {[%clk 0:02:41]}  Bb7 {[%clk 0:02:55]} 5. Bg2 {[%clk 0:02:42]}  Bb4+ {[%clk 0:02:51]} 6. Nbd2 {[%clk 0:02:42]}  a5 {[%clk 0:02:51]} 7. O-O {[%clk 0:02:42]}  O-O {[%clk 0:02:51]} 8. b3 {[%clk 0:02:41]}  Bc3 {[%clk 0:02:47]} 9. Rb1 {[%clk 0:02:40]}  c5 {[%clk 0:02:47]} 10. dxc5 {[%clk 0:02:35]}  bxc5 {[%clk 0:02:46]} 11. Qc2 {[%clk 0:02:35]}  Bxd2 {[%clk 0:02:41]} 12. Nxd2 {[%clk 0:02:33]}  Bxg2 {[%clk 0:02:40]} 13. Kxg2 {[%clk 0:02:34]}  Nc6 {[%clk 0:02:39]} 14. Ne4 {[%clk 0:02:23]}  Nxe4 {[%clk 0:02:35]} 15. Qxe4 {[%clk 0:02:22]}  d5 {[%clk 0:02:35]} 16. cxd5 {[%clk 0:02:20]}  Qxd5 {[%clk 0:02:35]} 17. Qxd5 {[%clk 0:02:16]}  exd5 {[%clk 0:02:35]} 18. e3 {[%clk 0:02:16]}  Rfb8 {[%clk 0:02:30]} 19. Rd1 {[%clk 0:02:14]}  d4 {[%clk 0:02:25]} 20. exd4 {[%clk 0:02:13]}  cxd4 {[%clk 0:02:23]} 21. Bb2 {[%clk 0:02:13]}  Rd8 {[%clk 0:02:22]} 22. Rd2 {[%clk 0:02:12]}  Rd5 {[%clk 0:02:22]} 23. Rbd1 {[%clk 0:02:12]}  Rad8 {[%clk 0:02:22]} 24. f4 {[%clk 0:02:04]}  f5 {[%clk 0:02:22]} 25. Kf3 {[%clk 0:02:03]}  Kf7 {[%clk 0:02:20]} 26. h3 {[%clk 0:02:01]}  h5 {[%clk 0:02:18]} 27. g4 {[%clk 0:02:00]}  hxg4+ {[%clk 0:02:17]} 28. hxg4 {[%clk 0:02:01]}  fxg4+ {[%clk 0:02:16]} 29. Kxg4 {[%clk 0:02:02]}  g6 {[%clk 0:02:16]} 30. Rh1 {[%clk 0:01:56]}  Ne7 {[%clk 0:02:05]} 31. Rh7+ {[%clk 0:01:53]}  Ke6 {[%clk 0:02:05]} 32. Re2+ {[%clk 0:01:52]}  Kd6 {[%clk 0:01:56]} 33. Rhxe7 {[%clk 0:01:29]}  d3 {[%clk 0:01:56]} 34. R2e6+ {[%clk 0:01:26]}  Kc5 {[%clk 0:01:54]} 35. Rc7+ {[%clk 0:01:19]}  Kb5 {[%clk 0:01:45]} 36. a4+ {[%clk 0:01:18]}  Kb4 {[%clk 0:01:32]} 37. Rb6+ {[%clk 0:01:17]} 1-0


[Site "https://www.chess.com"]

[Event "Titled Tuesday Blitz June 13 Late 2023"]
[White "Badelka, Olga"]
[Black "Elaisaz"]
[WhiteFideId "13509926"]
[WhiteElo "2375"]
[BlackElo "2195"]
[Result "0-1"]
[Round "3"]
[TimeControl "180+2"]
[Date "2023.06.13"]
[WhiteClock "0:00:03"]
[BlackClock "0:00:03"]
[Board "135"]

1. d4 {[%clk 0:02:55]}  Nf6 {[%clk 0:02:59]} 2. c4 {[%clk 0:02:55]}  c5 {[%clk 0:02:53]} 3. Nf3 {[%clk 0:02:53]}  cxd4 {[%clk 0:02:52]} 4. Nxd4 {[%clk 0:02:54]}  Nc6 {[%clk 0:02:51]} 5. Nc3 {[%clk 0:02:54]}  g6 {[%clk 0:02:49]} 6. e4 {[%clk 0:02:53]}  d6 {[%clk 0:02:48]} 7. Be2 {[%clk 0:02:51]}  Nxd4 {[%clk 0:02:48]} 8. Qxd4 {[%clk 0:02:51]}  Bg7 {[%clk 0:02:49]} 9. Be3 {[%clk 0:02:46]}  O-O {[%clk 0:02:49]} 10. Qd3 {[%clk 0:02:38]}  Be6 {[%clk 0:02:41]} 11. O-O {[%clk 0:02:36]}  Nd7 {[%clk 0:02:38]} 12. Qd2 {[%clk 0:01:53]}  Qa5 {[%clk 0:02:26]} 13. Rac1 {[%clk 0:01:45]}  Rfc8 {[%clk 0:02:24]} 14. b3 {[%clk 0:01:42]}  a6 {[%clk 0:02:19]} 15. Nd5 {[%clk 0:01:34]}  Qxd2 {[%clk 0:02:18]} 16. Bxd2 {[%clk 0:01:35]}  Bxd5 {[%clk 0:02:17]} 17. exd5 {[%clk 0:01:34]}  Bf6 {[%clk 0:02:11]} 18. Be3 {[%clk 0:01:06]}  Bg7 {[%clk 0:02:07]} 19. a4 {[%clk 0:00:58]}  a5 {[%clk 0:02:07]} 20. Rb1 {[%clk 0:00:51]}  Bc3 {[%clk 0:01:40]} 21. Rfc1 {[%clk 0:00:50]}  Bb4 {[%clk 0:01:39]} 22. Rd1 {[%clk 0:00:46]}  Bc5 {[%clk 0:01:35]} 23. Bg5 {[%clk 0:00:46]}  f6 {[%clk 0:01:32]} 24. Bd2 {[%clk 0:00:43]}  Kf7 {[%clk 0:01:29]} 25. Bg4 {[%clk 0:00:40]}  f5 {[%clk 0:01:28]} 26. Be2 {[%clk 0:00:40]}  Bb4 {[%clk 0:01:23]} 27. Bg5 {[%clk 0:00:39]}  Nc5 {[%clk 0:01:05]} 28. Bf3 {[%clk 0:00:34]}  Bc3 {[%clk 0:01:02]} 29. Kf1 {[%clk 0:00:31]}  Bf6 {[%clk 0:01:01]} 30. Be3 {[%clk 0:00:31]}  Bc3 {[%clk 0:00:57]} 31. Ke2 {[%clk 0:00:29]}  Ra6 {[%clk 0:00:55]} 32. Rdc1 {[%clk 0:00:24]}  Bf6 {[%clk 0:00:50]} 33. Bd2 {[%clk 0:00:18]}  b6 {[%clk 0:00:45]} 34. Be3 {[%clk 0:00:18]}  Ra7 {[%clk 0:00:40]} 35. h4 {[%clk 0:00:16]}  Kg7 {[%clk 0:00:25]} 36. h5 {[%clk 0:00:16]}  g5 {[%clk 0:00:25]} 37. g4 {[%clk 0:00:14]}  f4 {[%clk 0:00:25]} 38. Bd2 {[%clk 0:00:14]}  Re8 {[%clk 0:00:19]} 39. Kf1 {[%clk 0:00:13]}  e5 {[%clk 0:00:18]} 40. dxe6 {[%clk 0:00:13]}  Rxe6 {[%clk 0:00:18]} 41. Bd5 {[%clk 0:00:13]}  Ree7 {[%clk 0:00:16]} 42. b4 {[%clk 0:00:11]}  axb4 {[%clk 0:00:15]} 43. Bxb4 {[%clk 0:00:12]}  Nd3 {[%clk 0:00:13]} 44. Rd1 {[%clk 0:00:12]}  Nxb4 {[%clk 0:00:10]} 45. Rxb4 {[%clk 0:00:13]}  Be5 {[%clk 0:00:09]} 46. Rxb6 {[%clk 0:00:11]}  Rxa4 {[%clk 0:00:09]} 47. Rb8 {[%clk 0:00:10]}  Ra2 {[%clk 0:00:05]} 48. Rdb1 {[%clk 0:00:06]}  Bd4 {[%clk 0:00:04]} 49. Rg8+ {[%clk 0:00:06]}  Kh6 {[%clk 0:00:04]} 50. Kg1 {[%clk 0:00:05]}  Rxf2 {[%clk 0:00:03]} 51. Kh1 {[%clk 0:00:04]}  Ree2 {[%clk 0:00:03]} 52. Rf8 {[%clk 0:00:03]}  Rh2# {[%clk 0:00:03]} 0-1


[Site "https://www.chess.com"]

[Event "Titled Tuesday Blitz June 13 Late 2023"]
[White "Molenda, Marcin"]
[Black "Kornyukov, Alexey"]
[WhiteFideId "1173065"]
[BlackFideId "4150457"]
[WhiteElo "2286"]
[BlackElo "2352"]
[Result "1/2-1/2"]
[Round "3"]
[TimeControl "180+2"]
[Date "2023.06.13"]
[WhiteClock "0:01:25"]
[BlackClock "0:00:06"]
[Board "137"]

1. e4 {[%clk 0:02:59]}  c5 {[%clk 0:02:57]} 2. Nf3 {[%clk 0:02:59]}  Nc6 {[%clk 0:02:57]} 3. Bb5 {[%clk 0:02:55]}  e6 {[%clk 0:02:54]} 4. O-O {[%clk 0:02:50]}  Nge7 {[%clk 0:02:52]} 5. Re1 {[%clk 0:02:50]}  a6 {[%clk 0:02:42]} 6. Bf1 {[%clk 0:02:50]}  d5 {[%clk 0:02:37]} 7. exd5 {[%clk 0:02:48]}  Nxd5 {[%clk 0:02:35]} 8. d4 {[%clk 0:02:48]}  Nf6 {[%clk 0:02:26]} 9. Nc3 {[%clk 0:02:47]}  cxd4 {[%clk 0:02:14]} 10. Ne4 {[%clk 0:02:47]}  Be7 {[%clk 0:02:01]} 11. Ng3 {[%clk 0:02:37]}  O-O {[%clk 0:01:58]} 12. Bf4 {[%clk 0:02:35]}  Nd5 {[%clk 0:01:52]} 13. Be5 {[%clk 0:02:25]}  Nxe5 {[%clk 0:01:48]} 14. Nxe5 {[%clk 0:02:26]}  f6 {[%clk 0:01:47]} 15. Nf3 {[%clk 0:02:18]}  e5 {[%clk 0:01:46]} 16. Bc4 {[%clk 0:02:18]}  b5 {[%clk 0:01:44]} 17. Bxd5+ {[%clk 0:02:17]}  Qxd5 {[%clk 0:01:42]} 18. Nxd4 {[%clk 0:02:17]}  Bb7 {[%clk 0:01:27]} 19. Nf3 {[%clk 0:02:16]}  Rfd8 {[%clk 0:01:08]} 20. Qe2 {[%clk 0:02:16]}  g6 {[%clk 0:00:56]} 21. c3 {[%clk 0:02:09]}  Bc5 {[%clk 0:00:47]} 22. a4 {[%clk 0:02:08]}  b4 {[%clk 0:00:43]} 23. Red1 {[%clk 0:02:00]}  Qb3 {[%clk 0:00:28]} 24. Rdc1 {[%clk 0:01:41]}  Rac8 {[%clk 0:00:19]} 25. Ne4 {[%clk 0:01:40]}  Be7 {[%clk 0:00:16]} 26. c4 {[%clk 0:01:34]}  Qd3 {[%clk 0:00:11]} 27. Qe1 {[%clk 0:01:33]}  Qxe4 {[%clk 0:00:09]} 28. Qf1 {[%clk 0:01:31]}  Qf5 {[%clk 0:00:07]} 29. Ne1 {[%clk 0:01:27]}  Bc5 {[%clk 0:00:06]} 30. b3 {[%clk 0:01:27]}  Rd2 {[%clk 0:00:05]} 31. Rc2 {[%clk 0:01:26]}  Rxc2 {[%clk 0:00:05]} 32. Nxc2 {[%clk 0:01:27]}  Qxc2 {[%clk 0:00:05]} 33. Rd1 {[%clk 0:01:28]}  Be4 {[%clk 0:00:04]} 34. Rd7 {[%clk 0:01:26]}  Bb6 {[%clk 0:00:03]} 35. h4 {[%clk 0:01:24]}  Rd8 {[%clk 0:00:04]} 36. Rxd8+ {[%clk 0:01:24]}  Bxd8 {[%clk 0:00:05]} 37. h5 {[%clk 0:01:24]}  Bb6 {[%clk 0:00:05]} 38. hxg6 {[%clk 0:01:24]}  hxg6 {[%clk 0:00:06]} 39. Qe1 {[%clk 0:01:24]}  Kg7 {[%clk 0:00:05]} 40. Kh2 {[%clk 0:01:23]}  f5 {[%clk 0:00:05]} 41. f3 {[%clk 0:01:23]}  Bd3 {[%clk 0:00:05]} 42. Qh4 {[%clk 0:01:23]}  Qc3 {[%clk 0:00:05]} 43. Qe7+ {[%clk 0:01:23]}  Kh6 {[%clk 0:00:05]} 44. Qh4+ {[%clk 0:01:24]}  Kg7 {[%clk 0:00:05]} 45. Qe7+ {[%clk 0:01:24]}  Kg8 {[%clk 0:00:06]} 46. Qe8+ {[%clk 0:01:25]}  Kg7 {[%clk 0:00:06]} 47. Qe7+ {[%clk 0:01:25]} 1/2-1/2


[Site "https://www.chess.com"]

[Event "Titled Tuesday Blitz June 13 Late 2023"]
[White "Roebers, Eline"]
[Black "Dias, Joao Batista"]
[WhiteFideId "1058401"]
[BlackFideId "2108240"]
[WhiteElo "2525"]
[BlackElo "1907"]
[Result "0-1"]
[Round "3"]
[TimeControl "180+2"]
[Date "2023.06.13"]
[WhiteClock "0:00:00"]
[BlackClock "0:00:28"]
[Board "138"]

1. Nf3 {[%clk 0:02:57]}  Nf6 {[%clk 0:02:58]} 2. b3 {[%clk 0:02:53]}  g6 {[%clk 0:02:59]} 3. Bb2 {[%clk 0:02:53]}  Bg7 {[%clk 0:03:00]} 4. d4 {[%clk 0:02:51]}  O-O {[%clk 0:03:00]} 5. Nbd2 {[%clk 0:02:50]}  e6 {[%clk 0:03:01]} 6. e4 {[%clk 0:02:49]}  d5 {[%clk 0:03:01]} 7. e5 {[%clk 0:02:48]}  Nfd7 {[%clk 0:03:01]} 8. h4 {[%clk 0:02:48]}  h6 {[%clk 0:02:58]} 9. h5 {[%clk 0:02:47]}  g5 {[%clk 0:02:58]} 10. Bd3 {[%clk 0:02:47]}  f5 {[%clk 0:02:56]} 11. exf6 {[%clk 0:02:47]}  Nxf6 {[%clk 0:02:55]} 12. Qe2 {[%clk 0:02:46]}  Nc6 {[%clk 0:02:52]} 13. O-O-O {[%clk 0:02:38]}  Nb4 {[%clk 0:02:47]} 14. Bg6 {[%clk 0:02:26]}  Nxa2+ {[%clk 0:02:44]} 15. Kb1 {[%clk 0:02:26]}  Nb4 {[%clk 0:02:45]} 16. Ba3 {[%clk 0:02:25]}  a5 {[%clk 0:02:44]} 17. c3 {[%clk 0:02:24]}  Nc6 {[%clk 0:02:35]} 18. Bxf8 {[%clk 0:02:05]}  Qxf8 {[%clk 0:02:35]} 19. Kc2 {[%clk 0:02:01]}  a4 {[%clk 0:02:34]} 20. b4 {[%clk 0:01:59]}  a3 {[%clk 0:02:28]} 21. Ra1 {[%clk 0:01:56]}  Bd7 {[%clk 0:02:26]} 22. Ra2 {[%clk 0:01:42]}  Ng4 {[%clk 0:02:18]} 23. Rha1 {[%clk 0:01:29]}  Nxb4+ {[%clk 0:01:54]} 24. cxb4 {[%clk 0:01:27]}  Qxb4 {[%clk 0:01:54]} 25. Qd3 {[%clk 0:00:51]}  Nxf2 {[%clk 0:01:43]} 26. Qc3 {[%clk 0:00:37]}  Ba4+ {[%clk 0:01:39]} 27. Nb3 {[%clk 0:00:36]}  Qb5 {[%clk 0:01:10]} 28. Rxa3 {[%clk 0:00:33]}  Qe2+ {[%clk 0:01:06]} 29. Nd2 {[%clk 0:00:33]}  Bxb3+ {[%clk 0:01:03]} 30. Qxb3 {[%clk 0:00:30]}  Rxa3 {[%clk 0:00:54]} 31. Qxa3 {[%clk 0:00:24]}  Bxd4 {[%clk 0:00:51]} 32. Rf1 {[%clk 0:00:14]}  Be3 {[%clk 0:00:33]} 33. Qd3 {[%clk 0:00:12]}  Nxd3 {[%clk 0:00:29]} 34. Bxd3 {[%clk 0:00:00]}  Qxd2+ {[%clk 0:00:28]} 0-1


[Site "https://www.chess.com"]

[Event "Titled Tuesday Blitz June 13 Late 2023"]
[White "liwadas82"]
[Black "Siddharth, Jagadeesh"]
[BlackFideId "5818320"]
[WhiteElo "2445"]
[BlackElo "2303"]
[Result "0-1"]
[Round "3"]
[TimeControl "180+2"]
[Date "2023.06.13"]
[WhiteClock "0:00:00"]
[BlackClock "0:01:30"]
[Board "141"]

1. e4 {[%clk 0:03:00]}  c5 {[%clk 0:02:59]} 2. Nf3 {[%clk 0:03:00]}  d6 {[%clk 0:02:59]} 3. d4 {[%clk 0:03:01]}  cxd4 {[%clk 0:03:00]} 4. Nxd4 {[%clk 0:03:01]}  Nf6 {[%clk 0:03:01]} 5. Nc3 {[%clk 0:03:02]}  Nc6 {[%clk 0:03:02]} 6. Be3 {[%clk 0:03:01]}  Ng4 {[%clk 0:03:01]} 7. Bb5 {[%clk 0:03:01]}  Nxe3 {[%clk 0:03:01]} 8. fxe3 {[%clk 0:03:02]}  Bd7 {[%clk 0:03:01]} 9. Bxc6 {[%clk 0:03:02]}  bxc6 {[%clk 0:03:01]} 10. O-O {[%clk 0:03:02]}  e6 {[%clk 0:03:02]} 11. Qf3 {[%clk 0:03:01]}  Qf6 {[%clk 0:03:02]} 12. Qh5 {[%clk 0:03:01]}  g6 {[%clk 0:02:54]} 13. Rxf6 {[%clk 0:02:48]}  gxh5 {[%clk 0:02:54]} 14. Raf1 {[%clk 0:02:40]}  e5 {[%clk 0:02:51]} 15. Nf5 {[%clk 0:02:01]}  Be6 {[%clk 0:02:51]} 16. Ng3 {[%clk 0:01:57]}  h4 {[%clk 0:02:41]} 17. Nf5 {[%clk 0:01:56]}  h3 {[%clk 0:02:35]} 18. g3 {[%clk 0:01:48]}  Kd7 {[%clk 0:02:21]} 19. Nh6 {[%clk 0:01:36]}  Be7 {[%clk 0:02:14]} 20. R6f2 {[%clk 0:01:25]}  Bg5 {[%clk 0:01:58]} 21. Nxf7 {[%clk 0:01:24]}  Bxe3 {[%clk 0:01:58]} 22. Nxh8 {[%clk 0:01:24]}  Rxh8 {[%clk 0:01:59]} 23. Kh1 {[%clk 0:01:00]}  Bxf2 {[%clk 0:01:59]} 24. Rxf2 {[%clk 0:01:01]}  d5 {[%clk 0:02:00]} 25. Kg1 {[%clk 0:00:49]}  d4 {[%clk 0:01:59]} 26. Na4 {[%clk 0:00:46]}  Kd6 {[%clk 0:01:54]} 27. b3 {[%clk 0:00:44]}  Bg4 {[%clk 0:01:31]} 28. Rf6+ {[%clk 0:00:42]}  Kc7 {[%clk 0:01:31]} 29. Rf7+ {[%clk 0:00:33]}  Kd6 {[%clk 0:01:31]} 30. Rf6+ {[%clk 0:00:33]}  Ke7 {[%clk 0:01:31]} 31. Rxc6 {[%clk 0:00:30]}  Rf8 {[%clk 0:01:31]} 32. Rc7+ {[%clk 0:00:00]}  Kd6 {[%clk 0:01:30]} 0-1


[Site "https://www.chess.com"]

[Event "Titled Tuesday Blitz June 13 Late 2023"]
[White "Womacka, Mathias"]
[Black "Schmakel, Sam"]
[WhiteFideId "4611390"]
[BlackFideId "2039311"]
[WhiteElo "2377"]
[BlackElo "2356"]
[Result "1-0"]
[Round "3"]
[TimeControl "180+2"]
[Date "2023.06.13"]
[WhiteClock "0:02:03"]
[BlackClock "0:01:28"]
[Board "142"]

1. e4 {[%clk 0:02:57]}  g6 {[%clk 0:02:59]} 2. d4 {[%clk 0:02:57]}  Bg7 {[%clk 0:02:59]} 3. Nc3 {[%clk 0:02:56]}  d6 {[%clk 0:02:59]} 4. f4 {[%clk 0:02:56]}  Nf6 {[%clk 0:02:58]} 5. Nf3 {[%clk 0:02:55]}  c5 {[%clk 0:02:58]} 6. Bb5+ {[%clk 0:02:50]}  Bd7 {[%clk 0:02:53]} 7. e5 {[%clk 0:02:49]}  Ng4 {[%clk 0:02:49]} 8. Bxd7+ {[%clk 0:02:47]}  Qxd7 {[%clk 0:02:48]} 9. d5 {[%clk 0:02:47]}  dxe5 {[%clk 0:02:47]} 10. h3 {[%clk 0:02:47]}  e4 {[%clk 0:02:47]} 11. hxg4 {[%clk 0:02:47]}  exf3 {[%clk 0:02:47]} 12. Qxf3 {[%clk 0:02:48]}  Na6 {[%clk 0:02:46]} 13. Bd2 {[%clk 0:02:47]}  Nb4 {[%clk 0:02:43]} 14. O-O-O {[%clk 0:02:46]}  O-O-O {[%clk 0:02:44]} 15. Ne4 {[%clk 0:02:45]}  Qxd5 {[%clk 0:02:26]} 16. Bxb4 {[%clk 0:02:43]}  Qxa2 {[%clk 0:02:20]} 17. Qa3 {[%clk 0:02:43]}  Qc4 {[%clk 0:02:20]} 18. Nxc5 {[%clk 0:02:30]}  b6 {[%clk 0:02:08]} 19. Qxa7 {[%clk 0:02:19]}  Qxf4+ {[%clk 0:01:45]} 20. Kb1 {[%clk 0:02:17]}  bxc5 {[%clk 0:01:35]} 21. Qa8+ {[%clk 0:02:05]}  Qb8 {[%clk 0:01:35]} 22. Qc6+ {[%clk 0:02:05]}  Qc7 {[%clk 0:01:34]} 23. Qxc7+ {[%clk 0:02:04]}  Kxc7 {[%clk 0:01:28]} 24. Ba5+ {[%clk 0:02:03]} 1-0


[Site "https://www.chess.com"]

[Event "Titled Tuesday Blitz June 13 Late 2023"]
[White "Manukyan, Sargis V."]
[Black "Melikhov, Evgeny V."]
[WhiteFideId "13303465"]
[BlackFideId "4122046"]
[WhiteElo "2236"]
[BlackElo "2158"]
[Result "1-0"]
[Round "3"]
[TimeControl "180+2"]
[Date "2023.06.13"]
[WhiteClock "0:01:18"]
[BlackClock "0:00:00"]
[Board "143"]

1. Nf3 {[%clk 0:03:00]}  f5 {[%clk 0:02:59]} 2. c4 {[%clk 0:03:01]}  Nf6 {[%clk 0:02:58]} 3. g3 {[%clk 0:03:02]}  g6 {[%clk 0:02:58]} 4. Bg2 {[%clk 0:03:03]}  Bg7 {[%clk 0:02:58]} 5. O-O {[%clk 0:03:04]}  O-O {[%clk 0:02:59]} 6. Nc3 {[%clk 0:03:00]}  d6 {[%clk 0:02:59]} 7. d4 {[%clk 0:03:00]}  Qe8 {[%clk 0:02:59]} 8. d5 {[%clk 0:02:58]}  a5 {[%clk 0:02:58]} 9. Nb5 {[%clk 0:02:56]}  Na6 {[%clk 0:02:56]} 10. Be3 {[%clk 0:02:57]}  Bd7 {[%clk 0:02:42]} 11. Nbd4 {[%clk 0:02:56]}  Nc5 {[%clk 0:02:38]} 12. b3 {[%clk 0:02:54]}  h6 {[%clk 0:02:31]} 13. h3 {[%clk 0:02:52]}  Rc8 {[%clk 0:02:22]} 14. Rb1 {[%clk 0:02:38]}  c6 {[%clk 0:02:13]} 15. Qd2 {[%clk 0:02:29]}  Kh7 {[%clk 0:02:05]} 16. dxc6 {[%clk 0:02:28]}  bxc6 {[%clk 0:02:05]} 17. Qxa5 {[%clk 0:02:28]}  e5 {[%clk 0:02:03]} 18. Nc2 {[%clk 0:02:25]}  Nce4 {[%clk 0:01:50]} 19. Qa3 {[%clk 0:02:18]}  g5 {[%clk 0:01:43]} 20. Nd2 {[%clk 0:02:15]}  Nc3 {[%clk 0:01:34]} 21. Qxd6 {[%clk 0:02:11]}  Nxb1 {[%clk 0:01:31]} 22. Nxb1 {[%clk 0:02:06]}  f4 {[%clk 0:01:31]} 23. Bc5 {[%clk 0:02:02]}  Bf5 {[%clk 0:01:23]} 24. Qd2 {[%clk 0:01:53]}  Rf7 {[%clk 0:01:01]} 25. Nc3 {[%clk 0:01:52]}  Rd7 {[%clk 0:00:58]} 26. Qc1 {[%clk 0:01:51]}  Qg6 {[%clk 0:00:53]} 27. Nb4 {[%clk 0:01:50]}  e4 {[%clk 0:00:48]} 28. g4 {[%clk 0:01:46]}  Be6 {[%clk 0:00:34]} 29. Qc2 {[%clk 0:01:38]}  f3 {[%clk 0:00:14]} 30. exf3 {[%clk 0:01:34]}  Kh8 {[%clk 0:00:12]} 31. Nxe4 {[%clk 0:01:33]}  Nxe4 {[%clk 0:00:11]} 32. Qxe4 {[%clk 0:01:34]}  Qxe4 {[%clk 0:00:08]} 33. fxe4 {[%clk 0:01:35]}  Be5 {[%clk 0:00:08]} 34. a4 {[%clk 0:01:32]}  Rd2 {[%clk 0:00:07]} 35. Rb1 {[%clk 0:01:23]}  Rb2 {[%clk 0:00:06]} 36. Rxb2 {[%clk 0:01:22]}  Bxb2 {[%clk 0:00:06]} 37. e5 {[%clk 0:01:18]}  Bxe5 {[%clk 0:00:05]} 38. Nxc6 {[%clk 0:01:18]}  Bc3 {[%clk 0:00:03]} 39. a5 {[%clk 0:01:18]}  Bxa5 {[%clk 0:00:03]} 40. Bd4+ {[%clk 0:01:18]}  Kg8 {[%clk 0:00:02]} 41. Nxa5 {[%clk 0:01:19]}  Rd8 {[%clk 0:00:01]} 42. Be5 {[%clk 0:01:17]}  Rd1+ {[%clk 0:00:01]} 43. Kh2 {[%clk 0:01:18]}  Rb1 {[%clk 0:00:02]} 44. c5 {[%clk 0:01:17]}  Bxb3 {[%clk 0:00:01]} 45. Nxb3 {[%clk 0:01:17]}  Rxb3 {[%clk 0:00:00]} 46. Bd5+ {[%clk 0:01:18]} 1-0


[Site "https://www.chess.com"]

[Event "Titled Tuesday Blitz June 13 Late 2023"]
[White "Seresin, Francesco"]
[Black "Rengifo Blancas, Renzo Jhonathan"]
[WhiteFideId "886335"]
[BlackFideId "3807185"]
[WhiteElo "2219"]
[BlackElo "2085"]
[Result "1-0"]
[Round "3"]
[TimeControl "180+2"]
[Date "2023.06.13"]
[WhiteClock "0:00:30"]
[BlackClock "0:01:55"]
[Board "145"]

1. d4 {[%clk 0:03:00]}  d5 {[%clk 0:02:59]} 2. c4 {[%clk 0:02:58]}  c6 {[%clk 0:03:00]} 3. cxd5 {[%clk 0:02:58]}  cxd5 {[%clk 0:03:01]} 4. Nc3 {[%clk 0:02:59]}  Nc6 {[%clk 0:03:02]} 5. Bf4 {[%clk 0:02:58]}  Nf6 {[%clk 0:03:02]} 6. e3 {[%clk 0:02:58]}  a6 {[%clk 0:03:02]} 7. Bd3 {[%clk 0:02:57]}  Qb6 {[%clk 0:03:02]} 8. Nge2 {[%clk 0:02:56]}  e6 {[%clk 0:03:01]} 9. O-O {[%clk 0:02:55]}  Nb4 {[%clk 0:03:01]} 10. Bb1 {[%clk 0:02:54]}  Bd7 {[%clk 0:03:02]} 11. a3 {[%clk 0:02:53]}  Nc6 {[%clk 0:03:02]} 12. Na4 {[%clk 0:02:52]}  Qa7 {[%clk 0:03:02]} 13. b4 {[%clk 0:02:48]}  b5 {[%clk 0:03:02]} 14. Nc5 {[%clk 0:02:47]}  Bxc5 {[%clk 0:03:03]} 15. dxc5 {[%clk 0:02:45]}  e5 {[%clk 0:03:03]} 16. Bg5 {[%clk 0:02:45]}  Be6 {[%clk 0:03:02]} 17. Ba2 {[%clk 0:02:41]}  Rd8 {[%clk 0:03:02]} 18. Qc2 {[%clk 0:02:35]}  O-O {[%clk 0:03:01]} 19. Bxf6 {[%clk 0:02:34]}  gxf6 {[%clk 0:03:02]} 20. Ng3 {[%clk 0:02:34]}  Kh8 {[%clk 0:03:02]} 21. Rad1 {[%clk 0:02:30]}  Rg8 {[%clk 0:03:01]} 22. Rd2 {[%clk 0:02:30]}  d4 {[%clk 0:03:00]} 23. Bxe6 {[%clk 0:02:15]}  fxe6 {[%clk 0:03:01]} 24. Ne4 {[%clk 0:02:15]}  Qg7 {[%clk 0:02:59]} 25. g3 {[%clk 0:02:12]}  f5 {[%clk 0:02:57]} 26. Nd6 {[%clk 0:02:11]}  e4 {[%clk 0:02:57]} 27. Qb3 {[%clk 0:02:00]}  Ne5 {[%clk 0:02:55]} 28. Rxd4 {[%clk 0:01:38]}  Nf3+ {[%clk 0:02:54]} 29. Kg2 {[%clk 0:01:39]}  Nxd4 {[%clk 0:02:53]} 30. exd4 {[%clk 0:01:38]}  Qg6 {[%clk 0:02:41]} 31. d5 {[%clk 0:01:32]}  f4 {[%clk 0:02:41]} 32. Qc3+ {[%clk 0:01:26]}  Rg7 {[%clk 0:02:40]} 33. dxe6 {[%clk 0:01:21]}  f3+ {[%clk 0:02:40]} 34. Kh1 {[%clk 0:01:14]}  Qxe6 {[%clk 0:02:40]} 35. Rg1 {[%clk 0:00:57]}  Kg8 {[%clk 0:02:31]} 36. Qe3 {[%clk 0:00:56]}  Rg6 {[%clk 0:02:27]} 37. Qxe4 {[%clk 0:00:52]}  Rxd6 {[%clk 0:02:27]} 38. Qa8+ {[%clk 0:00:51]}  Kg7 {[%clk 0:02:23]} 39. cxd6 {[%clk 0:00:51]}  Qxd6 {[%clk 0:02:22]} 40. Qxf3 {[%clk 0:00:50]}  Rf6 {[%clk 0:02:22]} 41. Qg4+ {[%clk 0:00:47]}  Rg6 {[%clk 0:02:23]} 42. Qe4 {[%clk 0:00:45]}  Re6 {[%clk 0:02:22]} 43. Qb7+ {[%clk 0:00:43]}  Re7 {[%clk 0:02:23]} 44. Qf3 {[%clk 0:00:43]}  Rf7 {[%clk 0:02:23]} 45. Qg4+ {[%clk 0:00:43]}  Kh8 {[%clk 0:02:23]} 46. Rc1 {[%clk 0:00:36]}  Qd5+ {[%clk 0:02:23]} 47. Kg1 {[%clk 0:00:35]}  Rf8 {[%clk 0:02:23]} 48. Rc8 {[%clk 0:00:33]}  Rxc8 {[%clk 0:02:16]} 49. Qxc8+ {[%clk 0:00:34]}  Kg7 {[%clk 0:02:16]} 50. Qg4+ {[%clk 0:00:34]}  Kh8 {[%clk 0:02:16]} 51. Qc8+ {[%clk 0:00:30]}  Kg7 {[%clk 0:02:16]} 52. Qc3+ {[%clk 0:00:31]}  Kg6 {[%clk 0:02:15]} 53. h4 {[%clk 0:00:32]}  h5 {[%clk 0:02:14]} 54. Qe3 {[%clk 0:00:31]}  Qd1+ {[%clk 0:02:13]} 55. Kg2 {[%clk 0:00:31]}  Qd5+ {[%clk 0:02:08]} 56. Kh2 {[%clk 0:00:31]}  Qd1 {[%clk 0:02:08]} 57. Qg5+ {[%clk 0:00:30]}  Kf7 {[%clk 0:02:08]} 58. Qf4+ {[%clk 0:00:29]}  Kg6 {[%clk 0:02:08]} 59. Qe4+ {[%clk 0:00:27]}  Kf7 {[%clk 0:02:07]} 60. Qb7+ {[%clk 0:00:27]}  Kg8 {[%clk 0:02:05]} 61. Qxa6 {[%clk 0:00:28]}  Qf3 {[%clk 0:02:03]} 62. Qc8+ {[%clk 0:00:27]}  Kh7 {[%clk 0:02:02]} 63. Qc7+ {[%clk 0:00:26]}  Kg6 {[%clk 0:02:01]} 64. Qf4 {[%clk 0:00:26]}  Qe2 {[%clk 0:02:01]} 65. Qg5+ {[%clk 0:00:24]}  Kh7 {[%clk 0:02:01]} 66. Kg2 {[%clk 0:00:24]}  Qe4+ {[%clk 0:02:01]} 67. Kf1 {[%clk 0:00:25]}  Qb1+ {[%clk 0:01:57]} 68. Kg2 {[%clk 0:00:25]}  Qe4+ {[%clk 0:01:58]} 69. Kh2 {[%clk 0:00:26]}  Qe2 {[%clk 0:01:56]} 70. Qf5+ {[%clk 0:00:22]}  Kg7 {[%clk 0:01:56]} 71. Kg2 {[%clk 0:00:22]}  Kg8 {[%clk 0:01:53]} 72. Qf3 {[%clk 0:00:20]}  Qe8 {[%clk 0:01:54]} 73. Qd5+ {[%clk 0:00:19]}  Kh7 {[%clk 0:01:53]} 74. Kf3 {[%clk 0:00:19]}  Kh6 {[%clk 0:01:50]} 75. Qd2+ {[%clk 0:00:19]}  Kh7 {[%clk 0:01:50]} 76. Qd3+ {[%clk 0:00:19]}  Kh6 {[%clk 0:01:50]} 77. Qe3+ {[%clk 0:00:19]}  Qxe3+ {[%clk 0:01:50]} 78. Kxe3 {[%clk 0:00:20]}  Kg6 {[%clk 0:01:50]} 79. Kd4 {[%clk 0:00:21]}  Kf5 {[%clk 0:01:51]} 80. Kc5 {[%clk 0:00:21]}  Kg4 {[%clk 0:01:52]} 81. Kxb5 {[%clk 0:00:22]}  Kf3 {[%clk 0:01:53]} 82. a4 {[%clk 0:00:23]}  Kxf2 {[%clk 0:01:53]} 83. a5 {[%clk 0:00:24]}  Kxg3 {[%clk 0:01:54]} 84. a6 {[%clk 0:00:25]}  Kxh4 {[%clk 0:01:55]} 85. a7 {[%clk 0:00:26]}  Kg3 {[%clk 0:01:56]} 86. a8=Q {[%clk 0:00:27]}  h4 {[%clk 0:01:57]} 87. Qg8+ {[%clk 0:00:27]}  Kh2 {[%clk 0:01:58]} 88. Kc5 {[%clk 0:00:28]}  h3 {[%clk 0:01:58]} 89. b5 {[%clk 0:00:28]}  Kh1 {[%clk 0:01:59]} 90. Qh8 {[%clk 0:00:29]}  h2 {[%clk 0:02:00]} 91. Qxh2+ {[%clk 0:00:29]}  Kxh2 {[%clk 0:01:55]} 92. b6 {[%clk 0:00:30]} 1-0


[Site "https://www.chess.com"]